bitfinex-derivatives/quotes_ETHF0:USTF0_20260201
["timestamp","ask_amount","ask_price","bid_price","bid_amount"]
[1769943190405,2.42156,2392.5,2391.5,3.70778569]
[1769943190611,2.42156,2392.6,2391.5,3.70778569]
[1769943190812,6.20605659,2392.6,2391.5,3.70778569]
[1769943191317,3.78449659,2392.5,2391.5,3.70778569]
[1769943191613,3.78449659,2392.5,2391.3,2.50681782]
[1769943191812,3.78449659,2392.4,2391.3,3.82073572]
[1769943192115,3.78449659,2392.3,2391.3,3.82073572]
[1769943195114,3.78449659,2391.9,2391.0,0.00336027]
[1769943195818,3.78449659,2391.7,2390.4,3.82073572]
[1769943196917,3.78891828,2391.7,2390.4,3.82472033]
[1769943197713,0.00442169,2391.7,2390.4,3.82472033]
[1769943198013,3.78449659,2392.2,2390.8,3.82073572]
[1769943198213,3.99375659,2391.9,2390.5,3.82073572]
[1769943198614,3.99378659,2391.5,2390.4,0.00398461]
[1769943199019,3.99378659,2391.5,2390.4,3.82472033]
[1769943199020,3.99706656,2391.5,2390.4,3.82472033]
[1769943199515,3.78777656,2391.5,2390.4,3.82472033]
[1769943200312,0.00327997,2391.5,2390.4,3.82472033]
[1769943204015,3.78777656,2391.5,2390.4,3.82472033]
[1769943204416,0.00327997,2391.5,2390.4,3.82472033]
[1769943207220,3.78777656,2391.5,2390.4,3.82472033]
[1769943207929,0.00327997,2391.5,2390.4,3.82472033]
[1769943208324,3.78449659,2392.2,2390.5,3.82073572]
[1769943208522,3.78449659,2392.2,2390.5,6.32755354]
[1769943208723,3.78449659,2392.2,2390.6,3.82073572]
[1769943209422,0.00311178,2392.2,2390.9,3.82073572]
[1769943209622,0.00311178,2392.2,2391.1,3.82073572]
[1769943212424,3.78449659,2392.9,2391.3,3.82073572]
[1769943213324,3.78449659,2392.7,2391.3,3.82073572]
[1769943215226,3.78449659,2392.6,2391.3,3.82073572]
[1769943216932,3.78449659,2392.5,2391.1,3.82073572]
[1769943217430,3.74872053,2392.4,2391.1,3.82073572]
[1769943224025,4.02283002,2392.2,2391.1,3.82073572]
[1769943224428,3.81360002,2392.0,2391.1,3.82073572]
[1769943225030,4.02285002,2391.9,2390.8,4.00787649]
[1769943225332,3.81360002,2391.7,2390.8,4.00787649]
[1769943225826,3.81360002,2391.7,2390.7,2.092]
[1769943226026,0.20926,2391.8,2390.7,2.092]
[1769943226027,3.81360002,2391.4,2390.7,2.092]
[1769943226235,3.81360002,2391.4,2390.4,4.0118611]
[1769943226532,3.81360002,2391.4,2390.4,0.00398461]
[1769943227128,3.81360002,2391.4,2390.1,4.00787649]
[1769943227932,3.81360002,2391.1,2390.1,4.00787649]
[1769943228128,3.81758463,2391.1,2390.1,4.01192955]
[1769943228731,4.02691463,2391.1,2390.1,0.00405306]
[1769943229126,3.81758463,2391.1,2389.4,2.50681782]
[1769943229332,3.81360002,2390.3,2389.2,4.00787649]
[1769943230136,3.81360002,2390.3,2389.2,4.01247646]
[1769943231033,3.81360002,2390.6,2389.2,4.01247646]
[1769943233830,4.02297002,2390.6,2389.2,4.01247646]
[1769943236332,0.20937,2390.6,2389.2,4.01247646]
[1769943236637,3.81360002,2390.9,2389.2,4.01247646]
[1769943237033,4.02294002,2390.9,2389.2,4.01247646]
[1769943237934,8.90283307,2391.2,2389.2,4.01247646]
[1769943238133,10.6799489,2392.6,2389.2,4.01247646]
[1769943238134,0.0459124,2392.1,2391.1,2.52421919]
[1769943238336,4.10309714,2392.5,2391.2,4.548]
[1769943238532,4.10309714,2392.5,2391.3,2.50681782]
[1769943238737,4.10309714,2392.5,2391.2,7.05481782]
[1769943238938,4.10309714,2392.4,2391.2,4.55228434]
[1769943239336,4.10309714,2392.1,2391.2,2.09728434]
[1769943239537,0.00385617,2392.5,2391.2,2.09728434]
[1769943239538,4.10309714,2391.9,2391.2,2.09728434]
[1769943240134,0.00385617,2392.5,2391.2,2.09728434]
[1769943240135,4.10309714,2392.4,2391.2,2.09728434]
[1769943240439,4.10309714,2392.3,2391.2,2.09728434]
[1769943243639,0.00385617,2392.5,2391.2,2.30659434]
[1769943244337,0.00385617,2392.5,2391.3,0.2093]
[1769943244543,4.10309714,2392.9,2391.4,2.52421919]
[1769943245245,4.10309714,2392.9,2391.5,2.639]
[1769943246244,4.10309714,2392.8,2391.5,2.639]
[1769943246543,4.10309714,2392.8,2391.2,4.60410216]
[1769943246544,4.10309714,2392.8,2391.2,2.09728434]
[1769943246841,4.10309714,2392.4,2391.2,2.09728434]
[1769943247242,4.10309714,2392.2,2391.2,2.09728434]
[1769943248143,4.10332778,2392.0,2391.2,2.09728434]
[1769943253245,4.10332778,2391.8,2391.2,2.09728434]
[1769943254048,8.28652778,2391.7,2391.2,2.09728434]
[1769943254346,4.10332778,2391.5,2391.2,2.09728434]
[1769943255748,4.10332778,2392.5,2391.2,2.09728434]
[1769943255947,4.10332778,2392.0,2391.2,2.09728434]
[1769943256349,8.28652778,2391.8,2391.2,2.09728434]
[1769943256549,4.10332778,2391.8,2391.2,0.00428434]
[1769943256749,8.28652778,2391.7,2391.2,0.00428434]
[1769943257050,4.10332778,2391.7,2391.2,0.00428434]
[1769943257246,8.28652778,2391.7,2391.2,0.00428434]
[1769943258840,4.1832,2391.6,2391.2,0.00428434]
[1769943259644,8.28652778,2391.6,2391.2,0.00428434]
[1769943260244,4.1832,2391.6,2391.2,0.00428434]
[1769943260440,4.10332778,2391.9,2391.2,0.00428434]
[1769943260639,4.1832,2391.8,2391.2,0.00428434]
[1769943260847,4.10332778,2391.6,2391.2,0.00428434]
[1769943261248,4.10332778,2391.5,2391.2,0.00428434]
[1769943262049,4.10332778,2391.4,2391.2,0.00428434]
[1769943262250,4.10332778,2391.4,2390.9,3.837]
[1769943262450,8.28652778,2391.4,2390.9,3.837]
[1769943263151,8.28950734,2391.4,2390.9,3.84007239]
[1769943263546,4.10332778,2391.7,2390.9,3.84007239]
[1769943264252,4.10332778,2391.9,2390.9,3.84007239]
[1769943264550,4.10482945,2391.9,2390.9,3.84007239]
[1769943264749,4.10482945,2391.9,2391.0,3.837]
[1769943265050,4.10482945,2391.9,2390.9,0.00307239]
[1769943265245,4.10332778,2391.7,2390.9,0.00307239]
[1769943265447,4.10332778,2391.7,2390.9,2.50989021]
[1769943265642,8.28652778,2391.7,2390.9,2.50989021]
[1769943266046,4.10332778,2391.7,2390.9,2.50989021]
[1769943266247,4.10332778,2391.7,2391.0,2.50681782]
[1769943267247,4.10332778,2391.6,2391.2,2.50681782]
[1769943267752,4.1832,2391.5,2391.2,2.50681782]
[1769943268152,3.92747239,2391.1,2391.0,2.50326693]
[1769943268346,0.00150167,2391.9,2390.8,3.68935041]
[1769943268551,4.1832,2391.3,2390.5,7.0551541]
[1769943268751,4.1832,2391.4,2390.5,2.092]
[1769943269152,4.1832,2391.2,2390.5,2.092]
[1769943269347,4.1832,2391.3,2390.5,2.09512868]
[1769943269552,4.1832,2391.0,2390.5,2.09512868]
[1769943269952,0.20932,2391.2,2389.7,4.9631541]
[1769943270151,4.1832,2391.0,2389.5,4.9631541]
[1769943270352,3.92747239,2390.6,2389.4,4.9631541]
[1769943270553,3.92747239,2390.5,2389.4,4.9631541]
[1769943270752,3.92747239,2390.2,2389.4,4.9631541]
[1769943270952,3.93141202,2390.2,2389.4,4.96808638]
[1769943271259,3.93141202,2390.2,2389.4,0.00493228]
[1769943271260,3.92747239,2389.8,2389.4,0.00493228]
[1769943271854,8.11067239,2389.7,2389.4,0.00493228]
[1769943272055,3.92747239,2389.7,2389.4,0.00493228]
[1769943272251,4.1832,2389.5,2389.4,0.00493228]
[1769943272446,3.92747239,2389.6,2389.4,0.00493228]
[1769943272750,4.1832,2389.5,2389.4,0.00493228]
[1769943272958,3.93141202,2390.2,2389.4,0.00493228]
[1769943274460,3.92747239,2390.5,2389.6,3.66214808]
[1769943275152,3.92747239,2390.5,2389.5,3.97]
[1769943275557,3.9312355,2390.5,2389.5,3.97]
[1769943276058,3.9312355,2390.5,2389.6,3.65355608]
[1769943276764,0.00376311,2390.5,2389.6,3.65355608]
[1769943278056,3.98454673,2390.5,2389.4,0.00493228]
[1769943278663,3.98454673,2390.5,2389.4,3.65064315]
[1769943279062,3.98454673,2390.5,2389.6,3.64571087]
[1769943279361,3.98078362,2390.8,2389.6,3.64571087]
[1769943280259,3.98078362,2390.2,2388.6,15.1095186]
[1769943280465,3.98078362,2390.0,2388.4,2.092]
[1769943280661,3.98078362,2389.8,2388.4,2.092]
[1769943281464,3.98430164,2389.8,2388.4,2.09646951]
[1769943281662,3.98078362,2389.4,2387.7,3.80392321]
[1769943281861,4.19025362,2389.4,2387.7,3.80392321]
[1769943282665,4.19025362,2389.4,2387.7,3.80761907]
[1769943283567,3.98078362,2388.2,2386.4,3.80392321]
[1769943284561,3.98078362,2388.2,2386.4,3.80779132]
[1769943284966,3.98078362,2388.2,2386.5,3.91753087]
[1769943285167,3.98078362,2388.2,2386.7,3.91753087]
[1769943285368,3.98078362,2388.2,2386.8,3.91753087]
[1769943285674,3.98078362,2388.2,2386.9,3.91753087]
[1769943286671,3.98078362,2388.2,2387.1,3.91753087]
[1769943287173,3.98078362,2388.2,2387.2,8.10153087]
[1769943287371,3.98078362,2388.2,2387.2,3.91753087]
[1769943287574,3.98078362,2388.2,2387.2,8.10153087]
[1769943288367,3.77523773,2388.9,2387.6,3.91753087]
[1769943289174,3.77523773,2388.9,2387.7,3.91753087]
[1769943289766,3.77523773,2389.4,2388.0,3.91753087]
[1769943290769,3.98471773,2389.4,2387.3,4.12718087]
[1769943291175,3.98471773,2389.4,2387.6,3.91753087]
[1769943291674,3.98471773,2389.4,2387.8,3.91753087]
[1769943292673,2.79674719,2387.6,2385.9,3.91753087]
[1769943292872,2.79287908,2386.8,2385.6,3.91753087]
[1769943293072,2.79287908,2386.6,2384.8,3.91753087]
[1769943293269,2.79287908,2386.4,2384.8,3.91753087]
[1769943293670,2.84726789,2386.7,2385.2,3.91753087]
[1769943293878,2.85068788,2386.7,2385.2,3.9219916]
[1769943296385,2.85068788,2386.7,2385.5,3.91753087]
[1769943296581,2.85068788,2386.7,2385.5,1.351793]
[1769943296774,0.20975,2386.3,2385.2,0.00446073]
[1769943296982,0.20978,2386.0,2384.1,4.10773032]
[1769943297181,0.20979,2385.8,2384.3,4.10773032]
[1769943297584,0.20979,2385.8,2384.7,4.10773032]
[1769943297978,0.20979,2385.8,2384.8,1.351793]
[1769943298183,0.20979,2385.8,2383.2,2.457]
[1769943298184,3.77523773,2385.4,2382.9,0.21004]
[1769943298382,3.77523773,2385.1,2383.0,5.67321792]
[1769943298580,3.77523773,2385.5,2383.8,5.46318792]
[1769943298784,3.77523773,2385.5,2383.9,5.46318792]
[1769943298985,3.77523773,2385.5,2384.0,5.46318792]
[1769943299184,3.77523773,2385.5,2384.1,5.46318792]
[1769943299385,3.77523773,2385.5,2384.3,5.46318792]
[1769943299889,3.77523773,2385.5,2384.5,5.46318792]
[1769943300185,3.77523773,2385.8,2384.1,3.91753087]
[1769943300488,3.77523773,2386.3,2384.7,3.91753087]
[1769943300891,3.77523773,2386.3,2385.0,3.91753087]
[1769943301090,3.77523773,2386.6,2385.0,3.91753087]
[1769943301290,3.77523773,2386.6,2385.4,3.91753087]
[1769943301484,3.77523773,2386.9,2385.4,9.38071879]
[1769943301685,3.77523773,2386.9,2385.7,3.91753087]
[1769943301884,0.20967,2387.1,2385.7,0.00390321]
[1769943301885,3.77865772,2386.7,2385.7,0.00390321]
[1769943302281,3.77865772,2386.7,2385.3,3.91753087]
[1769943302881,3.77865772,2386.7,2385.3,9.38071879]
[1769943303094,3.77865772,2386.7,2385.4,9.38071879]
[1769943303389,3.77865772,2386.7,2385.4,3.92097737]
[1769943303587,3.77865772,2386.7,2385.4,0.0034465]
[1769943304394,0.00341999,2386.7,2385.9,3.91753087]
[1769943304695,3.77523773,2387.3,2386.3,5.46318792]
[1769943304888,3.77523773,2387.3,2385.9,3.91753087]
[1769943305087,3.77523773,2387.3,2386.0,9.38071879]
[1769943305289,3.77523773,2387.3,2386.0,3.91753087]
[1769943305491,3.77923564,2387.3,2386.3,9.38071879]
[1769943305688,0.00399791,2387.3,2386.3,3.91753087]
[1769943305995,0.00399791,2387.3,2386.4,5.46318792]
[1769943305996,3.77923564,2387.3,2386.4,5.46318792]
[1769943306694,0.00399791,2387.3,2386.7,5.46318792]
[1769943306891,0.00399791,2387.3,2386.6,3.91753087]
[1769943306892,2.30562,2387.8,2386.6,3.91753087]
[1769943307197,3.77523773,2387.7,2386.3,3.91753087]
[1769943307397,3.77523773,2387.7,2386.5,4.01603322]
[1769943307799,3.77899933,2387.7,2386.6,5.46318792]
[1769943307998,0.0037616,2387.7,2386.9,4.01603322]
[1769943308200,3.93578776,2387.7,2386.5,4.01603322]
[1769943308694,3.93578776,2387.7,2386.5,9.47922114]
[1769943309295,0.0037616,2387.7,2386.9,5.46318792]
[1769943309500,2.40842602,2386.0,2383.9,0.20995]
[1769943309697,2.35275359,2385.9,2383.3,0.21001]
[1769943309898,2.35275359,2385.7,2383.5,4.01603322]
[1769943310295,2.53250071,2386.5,2383.8,4.01603322]
[1769943310497,0.20977,2386.0,2383.8,4.02035215]
[1769943312598,0.20982,2385.5,2383.8,4.02035215]
[1769943312800,0.20982,2385.5,2384.0,4.01603322]
[1769943313701,0.20982,2385.5,2384.2,4.01603322]
[1769943314706,2.10896895,2386.3,2384.2,4.01603322]
[1769943314901,0.20977,2386.0,2384.2,4.01603322]
[1769943315301,0.20978,2385.9,2384.2,4.01603322]
[1769943315509,0.20979,2385.8,2384.2,4.01603322]
[1769943315703,0.2098,2385.7,2384.2,4.01603322]
[1769943316700,2.12374515,2385.1,2383.8,4.02035215]
[1769943316901,0.2099,2384.6,2383.8,4.02035215]
[1769943317103,0.2099,2384.5,2383.8,4.02035215]
[1769943317299,0.20991,2384.4,2383.5,4.01603322]
[1769943318308,0.20991,2384.4,2383.5,4.0202576]
[1769943318708,2.5132921,2384.4,2383.5,0.00422438]
[1769943319599,0.00387725,2384.6,2383.5,0.00422438]
[1769943319600,0.20993,2384.2,2383.5,0.00422438]
[1769943319804,2.65223729,2384.2,2383.5,0.00422438]
[1769943320201,2.65225729,2384.0,2382.9,4.01603322]
[1769943320508,0.20993,2384.2,2382.9,4.01603322]
[1769943321115,0.20993,2384.2,2382.9,9.12903322]
[1769943321301,0.20993,2384.2,2383.0,4.01603322]
[1769943321506,2.64801291,2384.2,2383.0,4.01603322]
[1769943321810,2.64801291,2384.2,2383.1,4.01603322]
[1769943323207,0.00387725,2384.6,2383.1,4.01603322]
[1769943323402,2.49267304,2384.4,2383.1,4.01603322]
[1769943323608,0.20994,2384.1,2383.1,4.01603322]
[1769943324110,2.71001349,2384.1,2383.1,4.01603322]
[1769943324406,0.20994,2384.1,2383.1,4.01603322]
[1769943325909,0.00387725,2384.6,2383.1,4.01603322]
[1769943326110,0.2099,2384.5,2383.1,4.01603322]
[1769943326502,2.72322282,2384.5,2383.1,4.01603322]
[1769943326706,2.72324282,2384.3,2383.1,4.01603322]
[1769943327110,0.20992,2384.3,2383.1,4.01603322]
[1769943327412,2.72325282,2384.2,2383.1,4.01603322]
[1769943327804,2.70473191,2384.1,2383.1,4.01603322]
[1769943328008,2.70473191,2384.1,2382.9,0.00362822]
[1769943328507,2.70473191,2384.1,2382.9,4.01966144]
[1769943329710,2.50758986,2383.9,2382.9,0.00362822]
[1769943330405,2.71754986,2383.9,2382.9,0.00362822]
[1769943330911,2.50758986,2383.5,2381.5,4.01603322]
[1769943331113,2.50758986,2383.5,2381.7,4.01603322]
[1769943331114,0.21,2383.5,2381.7,4.01603322]
[1769943331413,2.50758986,2384.1,2381.7,4.01603322]
[1769943332010,2.50758986,2384.1,2381.7,4.0196851]
[1769943332410,2.57173937,2383.4,2381.9,4.01603322]
[1769943333212,2.57173937,2383.4,2382.0,4.01603322]
[1769943333809,0.21001,2383.3,2382.1,4.01603322]
[1769943334013,2.92457318,2383.3,2382.1,4.01603322]
[1769943334213,2.71456318,2384.2,2382.1,4.01603322]
[1769943334411,2.71456318,2383.6,2382.1,4.01603322]
[1769943334610,2.71456318,2383.5,2381.8,4.01603322]
[1769943335113,2.71456318,2383.3,2381.8,4.01603322]
[1769943335313,2.54041858,2383.6,2381.8,4.01603322]
[1769943335314,2.71456318,2383.0,2381.8,4.01603322]
[1769943336216,2.99164303,2383.1,2381.7,4.0196851]
[1769943338227,2.82271972,2382.9,2381.7,4.0196851]
[1769943338429,3.03595026,2382.9,2381.7,0.00365188]
[1769943338829,3.03595026,2382.9,2381.7,3.70417111]
[1769943339731,2.82591026,2382.9,2381.8,3.70051923]
[1769943339920,0.00319054,2382.9,2381.8,3.10051923]
[1769943340325,2.88292374,2383.5,2381.8,3.10051923]
[1769943340529,2.88292374,2383.5,2381.2,4.9178167]
[1769943340530,0.21018,2381.4,2379.6,6.22900423]
[1769943340721,2.54041858,2380.7,2378.9,0.00987458]
[1769943340926,2.54041858,2380.1,2378.3,4.561]
[1769943341125,2.54041858,2380.1,2378.2,4.561]
[1769943341523,3.97566149,2380.0,2378.3,13.18604996]
[1769943341723,0.00294741,2380.1,2378.4,6.016]
[1769943341929,0.00294741,2380.1,2378.6,4.10943373]
[1769943342125,0.00294741,2380.1,2379.3,4.10943373]
[1769943342329,0.21022,2381.0,2379.3,4.10943373]
[1769943342526,2.36619945,2381.4,2379.4,17.29548369]
[1769943342733,0.21022,2381.0,2379.4,4.10943373]
[1769943343126,2.36619945,2381.6,2380.0,4.10943373]
[1769943343330,2.58062924,2381.6,2380.0,4.11452078]
[1769943343629,4.01865699,2381.5,2380.0,4.11452078]
[1769943343831,4.01865699,2381.4,2380.0,4.11452078]
[1769943344031,4.01865699,2381.3,2380.0,4.11452078]
[1769943344232,2.58062924,2381.6,2380.0,4.11452078]
[1769943344424,4.21258495,2381.5,2380.0,0.00508705]
[1769943344628,0.21022,2381.0,2379.4,4.1106347]
[1769943344824,4.00241495,2380.9,2378.7,6.5736347]
[1769943345029,2.36619945,2380.7,2378.8,4.1106347]
[1769943345225,0.21028,2380.2,2378.4,4.1106347]
[1769943345430,4.00241495,2380.1,2378.4,4.1106347]
[1769943345630,2.36619945,2380.6,2378.9,4.1106347]
[1769943345831,2.57640945,2381.0,2378.9,4.1106347]
[1769943346032,2.36619945,2380.5,2378.5,4.1106347]
[1769943346233,0.21027,2380.3,2378.5,4.1106347]
[1769943346430,3.99641306,2380.2,2378.5,4.1106347]
[1769943346631,2.36619945,2380.5,2378.4,0.00326445]
[1769943346632,3.99151853,2380.1,2378.4,0.00326445]
[1769943346936,3.99151853,2380.0,2377.3,4.1106347]
[1769943347136,0.21037,2379.2,2377.3,4.1106347]
[1769943347331,2.1,2379.3,2375.7,4.1106347]
[1769943347536,0.21045,2378.3,2375.9,4.1106347]
[1769943347736,0.21045,2378.3,2376.1,4.1106347]
[1769943347938,0.21048,2378.0,2376.1,4.1138957]
[1769943348135,0.00473701,2378.3,2377.0,4.1106347]
[1769943348334,0.00473701,2378.3,2377.6,0.01818256]
[1769943348531,0.21519701,2378.3,2376.5,4.1106347]
[1769943348731,0.00473701,2378.3,2376.6,4.1106347]
[1769943348932,0.00473701,2378.3,2377.2,4.1106347]
[1769943349132,0.21033,2379.7,2377.4,4.1106347]
[1769943349436,2.36619945,2380.6,2377.9,4.1106347]
[1769943349733,0.21037,2379.3,2377.2,4.1106347]
[1769943350128,0.21564773,2379.3,2377.2,4.11372517]
[1769943350531,0.21564773,2379.3,2377.4,4.1106347]
[1769943350731,0.00527773,2379.3,2377.8,4.1106347]
[1769943351132,0.00527773,2379.3,2378.1,4.1106347]
[1769943351326,0.00527773,2379.3,2378.1,17.29668466]
[1769943351530,0.00527773,2379.3,2378.4,4.1106347]
[1769943352027,0.00527773,2379.3,2377.3,4.1106347]
[1769943352224,0.00527773,2379.3,2377.6,4.1106347]
[1769943352631,0.00527773,2379.3,2377.8,4.1106347]
[1769943353232,0.00527773,2379.3,2378.0,4.1106347]
[1769943353434,0.00527773,2379.3,2378.2,4.1106347]
[1769943353741,0.00527773,2379.3,2378.2,17.29668466]
[1769943353938,0.00527773,2379.3,2378.2,4.1106347]
[1769943354233,0.00527773,2379.3,2377.2,0.00309047]
[1769943354234,0.00527773,2379.3,2377.3,4.1106347]
[1769943354541,0.21041,2378.8,2377.3,4.1106347]
[1769943355240,0.21041,2378.8,2377.5,4.1106347]
[1769943355538,0.00527773,2379.3,2377.5,4.1106347]
[1769943355928,0.21563773,2379.3,2377.7,4.1106347]
[1769943356335,0.00527773,2379.3,2378.0,4.1106347]
[1769943356735,0.00527773,2379.3,2378.1,17.29668466]
[1769943356937,0.00527773,2379.3,2378.1,4.1106347]
[1769943357140,0.00527773,2379.3,2378.3,4.1106347]
[1769943357736,1.00527773,2379.3,2378.3,4.1106347]
[1769943357939,1.00527773,2379.3,2377.4,2.102]
[1769943358141,1.00527773,2379.3,2377.7,4.1106347]
[1769943358341,1.00527773,2379.3,2378.0,4.1106347]
[1769943359134,0.21039,2379.0,2377.3,4.1106347]
[1769943359333,1.00527773,2379.3,2377.5,4.1106347]
[1769943359535,1.00527773,2379.3,2377.6,4.1106347]
[1769943359736,1.00527773,2379.3,2377.9,4.1106347]
[1769943360138,1.00527773,2379.3,2378.1,4.1106347]
[1769943360545,4.192,2379.2,2378.1,4.1106347]
[1769943360839,1.00527773,2379.3,2378.3,4.1106347]
[1769943361342,1.00527773,2379.3,2378.4,4.1106347]
[1769943361738,2.36619945,2380.4,2379.0,4.1106347]
[1769943361939,0.21022,2380.9,2379.4,4.1106347]
[1769943362140,3.39921507,2380.5,2378.9,4.1106347]
[1769943362345,2.36619945,2380.7,2378.9,4.1106347]
[1769943362544,2.36619945,2380.9,2378.9,4.1106347]
[1769943362744,0.21024,2380.7,2379.0,4.1106347]
[1769943362945,0.21025,2380.6,2379.0,4.1106347]
[1769943363144,0.21028,2380.3,2379.0,4.1106347]
[1769943363846,4.40229,2380.1,2379.0,4.1106347]
[1769943364044,4.20593477,2380.1,2379.0,4.1106347]
[1769943364238,0.01393477,2379.8,2378.7,4.10366732]
[1769943364741,0.01393477,2379.8,2378.8,4.10366732]
[1769943364946,4.192,2379.9,2378.8,4.10366732]
[1769943365141,0.21029,2380.2,2378.9,4.10366732]
[1769943365341,0.22422477,2380.1,2378.9,4.10366732]
[1769943365546,0.01393477,2380.1,2378.9,4.10366732]
[1769943365745,0.21026,2380.5,2379.5,13.18604996]
[1769943365942,0.2102,2381.2,2379.8,13.18604996]
[1769943366245,3.60935507,2381.8,2379.9,4.1106347]
[1769943366443,0.45944214,2380.7,2378.8,0.00351919]
[1769943366742,0.2103,2380.0,2378.8,0.00351919]
[1769943366947,0.45944214,2380.7,2378.8,0.00351919]
[1769943367141,0.21031,2379.9,2378.8,0.00351919]
[1769943367448,0.21404376,2379.9,2378.8,0.00351919]
[1769943367643,0.48502725,2379.9,2378.8,0.00351919]
[1769943367844,0.21038,2379.1,2377.3,2.103]
[1769943368043,0.2104,2378.9,2377.6,13.18604996]
[1769943368349,0.2104,2378.9,2377.2,2.103]
[1769943368649,0.2104,2378.9,2377.7,4.04845847]
[1769943368842,0.2104,2378.9,2377.8,4.04845847]
[1769943369044,0.2104,2378.9,2377.9,17.23450843]
[1769943369241,35.66555927,2379.5,2378.3,4.04845847]
[1769943369542,2.36619945,2379.8,2378.8,4.04845847]
[1769943369747,0.00373376,2379.9,2378.8,4.04845847]
[1769943369947,0.00373376,2379.9,2379.2,4.04845847]
[1769943370150,3.93786356,2379.8,2379.2,4.04845847]
[1769943370447,0.00373376,2379.9,2377.7,0.00526814]
[1769943370448,3.93786356,2379.7,2378.9,4.04845847]
[1769943370649,0.00373376,2379.9,2378.9,4.04845847]
[1769943370948,3.93761509,2379.8,2379.0,13.18604996]
[1769943371151,3.93761509,2379.7,2379.0,13.18604996]
[1769943371446,0.00373376,2379.9,2379.1,13.18604996]
[1769943371647,2.36619945,2379.6,2377.8,4.04845847]
[1769943371846,2.36619945,2379.6,2378.6,4.04845847]
[1769943372145,6.30364968,2379.5,2378.6,4.04845847]
[1769943372345,3.93745023,2379.4,2378.8,13.18604996]
[1769943372544,2.36619945,2379.8,2378.9,4.04845847]
[1769943372747,3.93942402,2379.8,2379.4,4.04845847]
[1769943372947,0.00373376,2379.9,2379.4,4.05238549]
[1769943373149,3.94003437,2379.8,2379.4,0.00392702]
[1769943373350,3.94003437,2379.7,2378.1,6.163]
[1769943373550,0.00373376,2379.9,2378.9,13.18604996]
[1769943373850,3.94252509,2379.8,2378.8,13.18604996]
[1769943374149,3.94252509,2379.8,2378.1,6.163]
[1769943374150,3.94247194,2379.7,2378.6,13.18604996]
[1769943374342,2.36619945,2379.5,2378.6,0.00507718]
[1769943374541,2.36619945,2379.5,2378.7,13.18604996]
[1769943374747,6.30867139,2379.4,2378.6,13.19112714]
[1769943374941,2.36619945,2379.2,2378.6,0.00507718]
[1769943375146,2.36619945,2379.1,2378.6,0.00507718]
[1769943375352,2.36619945,2378.9,2377.8,4.04845847]
[1769943375646,2.36619945,2378.8,2378.2,4.04845847]
[1769943375850,2.36619945,2378.7,2377.2,4.04845847]
[1769943376046,3.94247194,2378.6,2377.9,4.04845847]
[1769943376352,2.36619945,2378.9,2378.0,4.04845847]
[1769943376553,2.36619945,2378.9,2378.2,17.23450843]
[1769943376847,2.36619945,2378.9,2378.3,4.04845847]
[1769943377054,2.36619945,2378.8,2378.5,4.04845847]
[1769943377352,3.94403943,2378.7,2378.6,13.18604996]
[1769943377747,6.31023888,2378.9,2378.6,13.18604996]
[1769943377945,3.94403943,2378.8,2378.6,13.18604996]
[1769943378144,3.94403943,2378.7,2378.6,13.18604996]
[1769943378355,2.36619945,2378.8,2378.6,13.18604996]
[1769943378555,2.36619945,2378.8,2378.7,13.18604996]
[1769943378755,6.31023888,2378.8,2378.5,13.18604996]
[1769943379056,3.94403943,2378.7,2378.5,13.18604996]
[1769943379254,2.36619945,2378.8,2378.6,13.18604996]
[1769943379447,2.36619945,2378.8,2378.5,13.18604996]
[1769943379756,2.36619945,2378.8,2377.9,4.05165068]
[1769943380056,6.30993815,2378.8,2377.9,4.04365068]
[1769943380947,6.30993815,2378.8,2377.9,4.04834016]
[1769943381153,2.36619945,2378.2,2376.7,10.138]
[1769943381350,2.36619945,2377.8,2376.0,10.138]
[1769943381547,2.36619945,2377.7,2376.0,2.103]
[1769943381755,2.57669945,2377.7,2376.1,3.881]
[1769943381953,2.57669945,2377.7,2376.2,4.04845847]
[1769943381954,6.30993815,2377.6,2376.2,4.04845847]
[1769943382249,4.46677408,2377.5,2376.2,4.05205993]
[1769943382453,2.36619945,2377.1,2376.2,4.05205993]
[1769943382649,0.00414616,2377.6,2376.2,4.05205993]
[1769943383051,35.85255928,2378.8,2376.3,4.04845847]
[1769943383249,5.97542654,2379.2,2376.2,14.72760146]
[1769943383250,35.85255928,2379.2,2376.6,4.04845847]
[1769943383454,3.88815172,2379.1,2377.1,4.04845847]
[1769943383753,0.21036,2379.3,2377.3,4.04845847]
[1769943384050,3.88876514,2379.2,2377.3,4.04845847]
[1769943384251,3.88876514,2379.1,2377.3,4.04845847]
[1769943384453,0.21502291,2379.3,2377.3,4.04845847]
[1769943384652,3.88850742,2379.2,2377.3,4.04845847]
[1769943384852,3.88850742,2379.1,2377.3,4.04845847]
[1769943385053,3.88850742,2379.0,2377.5,4.04845847]
[1769943385355,0.21502291,2379.3,2377.5,4.04845847]
[1769943385547,0.00466291,2379.3,2377.5,4.04845847]
[1769943388757,39.92589708,2380.2,2377.6,4.04845847]
[1769943388956,4.0733378,2380.2,2377.6,4.04845847]
[1769943389752,4.0733378,2380.0,2377.6,4.04845847]
[1769943389954,4.0733378,2380.0,2377.8,4.04845847]
[1769943389955,4.0733378,2379.9,2377.8,4.04845847]
[1769943391559,0.00401214,2380.2,2378.1,4.04845847]
[1769943391747,6.18563654,2381.1,2378.1,4.05242461]
[1769943391748,4.0733378,2380.9,2378.1,4.05242461]
[1769943391953,4.0733378,2381.2,2378.6,4.04845847]
[1769943392158,4.0733378,2381.5,2379.1,4.04845847]
[1769943392352,4.0733378,2381.5,2379.3,4.04845847]
[1769943392548,4.0733378,2381.3,2379.5,4.04845847]
[1769943392753,4.07800167,2381.3,2379.5,4.04845847]
[1769943393156,0.00466387,2381.3,2379.5,4.04845847]
[1769943394755,4.0733378,2382.0,2379.6,4.04845847]
[1769943394955,4.0733378,2382.5,2379.6,4.04845847]
[1769943395153,3.39921507,2382.4,2379.6,4.04845847]
[1769943395358,4.0733378,2382.3,2379.6,4.04845847]
[1769943395552,4.0733378,2382.3,2379.7,3.764]
[1769943395857,4.0775197,2382.3,2379.8,4.04845847]
[1769943396059,4.0775197,2382.3,2379.8,4.05316142]
[1769943400565,4.0775197,2382.3,2379.9,3.90950694]
[1769943401558,4.2876197,2382.3,2380.1,3.90950694]
[1769943402363,3.72765581,2381.5,2379.8,6.01620989]
[1769943402564,3.72765581,2381.3,2379.9,3.90950694]
[1769943402758,3.93784581,2381.3,2379.9,3.90950694]
[1769943403262,3.72765581,2381.3,2379.9,3.90950694]
[1769943403565,3.39921507,2381.9,2379.9,3.90950694]
[1769943403566,3.72765581,2381.8,2379.9,3.90950694]
[1769943404055,3.72765581,2381.8,2380.0,2.465]
[1769943404260,3.72765581,2381.8,2380.2,4.0053216]
[1769943404768,3.72765581,2381.8,2380.1,2.101]
[1769943404961,3.76214583,2380.8,2379.8,0.00470295]
[1769943405661,3.76214583,2380.8,2379.8,4.01002455]